bitfinex/quotes_BTCUSD_20250901
["timestamp","ask_amount","ask_price","bid_price","bid_amount"]
[1756750052205,0.1850396,109260.0,109250.0,0.18512636]
[1756750052442,0.52642515,109260.0,109240.0,0.23576993]
[1756750052658,0.52642515,109260.0,109250.0,0.15956]
[1756750053988,0.1860396,109260.0,109250.0,0.34262636]
[1756750054207,0.1860396,109260.0,109250.0,0.34468636]
[1756750054448,0.52444515,109260.0,109250.0,0.34468636]
[1756750054868,0.1860396,109260.0,109250.0,0.34468636]
[1756750055079,0.1860396,109260.0,109250.0,0.34765636]
[1756750055283,0.1860396,109260.0,109250.0,0.34468636]
[1756750056751,0.52449515,109260.0,109250.0,0.34468636]
[1756750057186,0.52449515,109260.0,109250.0,0.34765636]
[1756750057722,0.1840496,109260.0,109250.0,0.34765636]
[1756750059156,0.1840496,109260.0,109250.0,0.34753636]
[1756750059275,0.52245515,109260.0,109250.0,0.34753636]
[1756750059479,0.1840496,109260.0,109250.0,0.34753636]
[1756750059893,0.1840496,109260.0,109250.0,0.34777636]
[1756750060309,0.1840496,109260.0,109250.0,0.18809636]
[1756750060523,0.1840496,109260.0,109250.0,0.34777636]
[1756750061187,0.52245515,109260.0,109250.0,0.34777636]
[1756750061762,0.1840496,109260.0,109250.0,0.34777636]
[1756750062012,0.52245515,109260.0,109250.0,0.34777636]
[1756750062352,0.001,109260.0,109250.0,0.34777636]
[1756750062592,0.001,109260.0,109250.0,0.36871518]
[1756750062795,0.001,109260.0,109250.0,0.39623018]
[1756750063001,0.001,109260.0,109250.0,0.82635172]
[1756750063371,0.001,109260.0,109250.0,0.48794617]
[1756750068139,0.001,109260.0,109250.0,0.48778617]
[1756750069713,0.001,109260.0,109250.0,0.32846617]
[1756750069921,0.001,109260.0,109250.0,0.48774617]
[1756750070675,0.001,109260.0,109250.0,0.48766617]
[1756750071099,0.00304,109260.0,109250.0,0.32846617]
[1756750071273,0.001,109260.0,109250.0,0.48766617]
[1756750073247,0.001,109260.0,109250.0,0.32846617]
[1756750073510,0.00304,109260.0,109250.0,0.48251617]
[1756750073707,0.00304,109260.0,109250.0,0.48764617]
[1756750073916,0.52759515,109260.0,109250.0,0.48247617]
[1756750074131,0.52449515,109260.0,109250.0,0.48463617]
[1756750074349,0.1860896,109260.0,109250.0,0.48463617]
[1756750075092,0.1860896,109260.0,109250.0,0.48459617]
[1756750076013,0.00304,109260.0,109250.0,0.48756617]
[1756750076687,0.1891896,109260.0,109250.0,0.48243617]
[1756750076894,0.52759515,109260.0,109250.0,0.20745382]
[1756750077747,0.52759515,109260.0,109250.0,0.027515]
[1756750077956,0.52759515,109260.0,109250.0,0.186395]
[1756750078585,0.52759515,109260.0,109250.0,0.36946136]
[1756750079009,0.52759515,109260.0,109250.0,0.186315]
[1756750079219,0.52759515,109260.0,109250.0,0.1588]
[1756750079427,0.18306636,109250.0,109240.0,0.23153993]
[1756750079544,0.33840555,109250.0,109240.0,0.39033993]
[1756750079755,0.34044555,109250.0,109240.0,0.39249993]
[1756750080004,0.34044555,109250.0,109240.0,0.39546993]
[1756750080211,0.33840555,109250.0,109240.0,0.39546993]
[1756750080763,0.52455515,109260.0,109240.0,0.39546993]
[1756750081094,0.52435515,109260.0,109240.0,0.39646993]
[1756750081512,0.52435515,109260.0,109250.0,0.15868]
[1756750081730,0.52639515,109260.0,109250.0,0.15868]
[1756750081938,0.34354555,109260.0,109250.0,0.34174636]
[1756750082163,0.52659515,109260.0,109250.0,0.34170636]
[1756750082589,0.1891896,109260.0,109250.0,0.18306636]
[1756750082799,0.33940555,109260.0,109250.0,0.34683636]
[1756750083008,0.33840555,109260.0,109250.0,0.34683636]
[1756750083219,0.57313257,109270.0,109260.0,0.1830496]
[1756750083393,0.57517257,109270.0,109260.0,0.2534496]
[1756750083803,0.57517257,109270.0,109260.0,0.2524496]
[1756750084787,0.57717257,109270.0,109260.0,0.2524496]
[1756750086015,0.57917257,109270.0,109260.0,0.2524496]
[1756750086946,0.57917257,109270.0,109260.0,0.0704]
[1756750088008,0.57917257,109270.0,109260.0,0.22892]
[1756750088442,0.24076702,109270.0,109260.0,0.22892]
[1756750088692,0.57917257,109270.0,109260.0,0.22892]
[1756750088866,0.24076702,109270.0,109260.0,0.22892]
[1756750089088,0.57917257,109270.0,109260.0,0.22892]
[1756750089522,0.57917257,109270.0,109260.0,0.22888]
[1756750090406,0.57917257,109270.0,109260.0,0.0704]
[1756750090603,0.57917257,109270.0,109260.0,0.22888]
[1756750093032,0.65713524,109270.0,109260.0,0.0704]
[1756750093244,0.61488352,109270.0,109260.0,0.22868]
[1756750093669,0.70679951,109270.0,109260.0,0.22868]
[1756750094947,0.69821121,109270.0,109260.0,0.22868]
[1756750095228,0.67967644,109270.0,109260.0,0.22868]
[1756750096773,0.67967644,109270.0,109260.0,0.0704]
[1756750097145,0.67967644,109270.0,109260.0,0.22856]
[1756750097397,0.67967644,109270.0,109260.0,0.0704]
[1756750097608,0.67967644,109270.0,109260.0,0.22852]
[1756750098529,0.18306636,109250.0,109240.0,0.0704]
[1756750098766,0.52147191,109250.0,109240.0,0.22844]
[1756750099057,0.96705627,109250.0,109240.0,0.15804]
[1756750099284,0.96705627,109250.0,109240.0,0.185559]
[1756750099509,0.9584679,109250.0,109240.0,0.15804]
[1756750099747,0.18309988,109230.0,109220.0,0.101163]
[1756750099987,0.52150543,109230.0,109220.0,0.261213]
[1756750100937,0.52150543,109230.0,109220.0,0.265213]
[1756750101174,0.52159164,109230.0,109220.0,0.265213]
[1756750101829,0.18318609,109230.0,109220.0,0.265213]
[1756750102056,0.18318609,109230.0,109220.0,0.44832964]
[1756750102283,0.18318609,109230.0,109220.0,0.45032964]
[1756750102526,0.18318609,109230.0,109220.0,0.267213]
[1756750102753,0.18318609,109230.0,109220.0,0.45032964]
[1756750104607,0.18318609,109230.0,109220.0,0.267213]
[1756750105245,0.18523609,109230.0,109220.0,0.267213]
[1756750106655,0.52159164,109230.0,109220.0,0.267213]
[1756750107322,0.52364164,109230.0,109220.0,0.263973]
[1756750107573,0.52667164,109230.0,109220.0,0.261963]
[1756750108029,0.52364164,109230.0,109220.0,0.263973]
[1756750108255,0.52364164,109230.0,109220.0,0.267213]
[1756750110651,0.52364164,109230.0,109220.0,0.263973]
[1756750110754,0.52667164,109230.0,109220.0,0.261963]
[1756750111671,0.52364164,109230.0,109220.0,0.263973]
[1756750113226,0.61858763,109230.0,109220.0,0.16396]
[1756750114611,0.77351763,109230.0,109220.0,0.16397]
[1756750115749,0.77351763,109230.0,109220.0,0.15997]
[1756750115988,0.77666763,109230.0,109220.0,0.16097]
[1756750116204,0.77666763,109230.0,109220.0,0.15896]
[1756750116423,0.77666763,109230.0,109220.0,0.001]
[1756750117101,0.77593627,109230.0,109220.0,0.001]
[1756750118441,0.61482627,109230.0,109220.0,0.001]
[1756750118624,0.77254627,109230.0,109220.0,0.001]
[1756750119087,0.77569627,109230.0,109220.0,0.001]
[1756750119315,0.77254627,109230.0,109220.0,0.001]
[1756750120204,0.77569627,109230.0,109220.0,0.001]
[1756750122721,1.20601781,109230.0,109220.0,0.001]
[1756750122915,1.48136162,109230.0,109220.0,0.001]
[1756750123613,1.14275607,109230.0,109220.0,0.001]
[1756750124029,1.48116162,109230.0,109220.0,0.001]
[1756750124253,1.70156162,109230.0,109220.0,0.001]
[1756750124459,1.7376622,109230.0,109220.0,0.001]
[1756750124689,1.5801422,109230.0,109220.0,0.001]
[1756750125111,1.7376222,109230.0,109220.0,0.001]
[1756750125801,1.0608111,109230.0,109220.0,0.001]
[1756750126085,1.7376222,109230.0,109220.0,0.001]
[1756750126516,1.73762664,109230.0,109220.0,0.001]
[1756750126759,1.75477869,109230.0,109220.0,0.001]
[1756750126985,1.77453367,109230.0,109220.0,0.001]
[1756750127190,1.78759108,109230.0,109220.0,0.001]
[1756750127410,1.78758918,109230.0,109220.0,0.001]
[1756750128477,1.11077808,109230.0,109220.0,0.001]
[1756750128714,1.78758918,109230.0,109220.0,0.001]
[1756750129838,1.77453177,109230.0,109220.0,0.001]
[1756750130070,1.80287439,109230.0,109220.0,0.001]
[1756750131445,0.18313341,109210.0,109200.0,0.00307]
[1756750131591,0.34053341,109210.0,109200.0,0.00307]
[1756750131795,0.67893896,109210.0,109200.0,0.00521]
[1756750132208,0.52153896,109210.0,109200.0,0.00521]
[1756750132576,0.67889896,109210.0,109200.0,0.00521]
[1756750133027,0.67889896,109210.0,109200.0,0.00621]
[1756750133232,0.34049341,109210.0,109200.0,0.00621]
[1756750133697,0.34049341,109210.0,109200.0,0.19164955]
[1756750133898,0.34049341,109210.0,109200.0,0.00621]
[1756750134096,0.34049341,109210.0,109200.0,0.00849937]
[1756750134500,0.67889896,109210.0,109200.0,0.00621]
[1756750135371,0.68087896,109210.0,109200.0,0.00621]
[1756750135577,0.67889896,109210.0,109200.0,0.00621]
[1756750136004,0.18313341,109210.0,109200.0,0.00621]
[1756750136217,0.34045341,109210.0,109200.0,0.00621]
[1756750137368,0.68083896,109210.0,109200.0,0.00621]
[1756750137562,0.68083896,109210.0,109200.0,0.00314]
[1756750137707,0.68083896,109210.0,109200.0,0.00621]
[1756750138124,0.71218582,109210.0,109200.0,0.00314]
[1756750138687,0.71218582,109210.0,109200.0,0.00621]
[1756750138893,0.71218582,109210.0,109200.0,0.00314]
[1756750139512,0.37378027,109210.0,109200.0,0.00314]
[1756750140362,0.21448027,109210.0,109200.0,0.00621]
[1756750140566,0.37172027,109210.0,109200.0,0.00621]
[1756750140791,0.21448027,109210.0,109200.0,0.34461555]
[1756750140994,0.37168027,109210.0,109200.0,0.52776573]
[1756750141250,0.37168027,109210.0,109200.0,0.34461555]
[1756750141468,0.37366027,109210.0,109200.0,0.00314]
[1756750141683,0.37366027,109210.0,109200.0,0.00621]
[1756750142031,0.37681027,109210.0,109200.0,0.001]
[1756750144842,0.71521582,109210.0,109200.0,0.001]
[1756750145844,0.18315018,109200.0,109190.0,0.02753]
[1756750146042,0.86465573,109200.0,109190.0,0.02753]
[1756750146502,0.86465573,109200.0,109170.0,0.19225288]
[1756750146503,0.18318373,109180.0,109170.0,0.19225288]
[1756750146793,0.18318373,109180.0,109170.0,0.2407267]
[1756750146990,0.18318373,109180.0,109170.0,0.2428067]
[1756750147199,0.18318373,109180.0,109170.0,0.2458267]
[1756750147766,0.18318373,109180.0,109170.0,0.24629811]
[1756750147972,0.18318373,109180.0,109170.0,0.57554364]
[1756750148533,0.18318373,109180.0,109170.0,0.23813809]
[1756750149747,0.18318373,109180.0,109170.0,0.24013809]
[1756750150856,0.18515373,109180.0,109170.0,0.03610641]
[1756750151056,0.18515373,109180.0,109170.0,0.03308641]
[1756750151418,0.18515373,109180.0,109170.0,0.03610641]
[1756750153235,0.18318373,109180.0,109170.0,0.03610641]
[1756750154053,0.18515373,109180.0,109170.0,0.21930692]
[1756750154292,0.18318373,109180.0,109170.0,0.21930692]
[1756750155165,0.16196538,109190.0,109170.0,0.55771247]
[1756750155525,0.18318373,109180.0,109170.0,0.55771247]
[1756750155698,0.18318373,109180.0,109170.0,0.21930692]
[1756750155928,0.18318373,109180.0,109170.0,0.55771247]
[1756750156119,0.18318373,109180.0,109170.0,0.55471247]
[1756750156583,0.18318373,109180.0,109170.0,0.55571247]
[1756750156788,0.18318373,109180.0,109170.0,0.55471247]
[1756750157165,0.18318373,109180.0,109170.0,0.21630692]
[1756750157378,0.18318373,109180.0,109170.0,0.55471247]
[1756750157574,0.18318373,109180.0,109170.0,0.55571247]
[1756750157781,0.3491575,109200.0,109170.0,0.55571247]
[1756750157999,0.33988695,109190.0,109180.0,0.00228979]
[1756750158332,0.33988695,109190.0,109180.0,0.18849352]
[1756750158450,0.33988695,109190.0,109180.0,0.18828373]
[1756750159295,0.33988695,109190.0,109180.0,0.0051]
[1756750159500,0.34185695,109190.0,109180.0,0.00308]
[1756750160070,0.6802625,109190.0,109180.0,0.00308]
[1756750160732,0.6802625,109190.0,109180.0,0.0061]
[1756750160959,0.34185695,109190.0,109180.0,0.0061]
[1756750161910,0.34185695,109190.0,109180.0,0.00838979]
[1756750162503,0.34185695,109190.0,109180.0,0.00536979]
[1756750163539,0.34185695,109190.0,109180.0,0.00838979]
[1756750165088,0.18316695,109190.0,109180.0,0.19157352]
[1756750165304,0.33972695,109190.0,109180.0,0.18928373]
[1756750168956,0.34169695,109190.0,109180.0,0.0061]
[1756750169556,0.34169695,109190.0,109180.0,0.00308]
[1756750170745,0.6832025,109190.0,109180.0,0.001]
[1756750172550,1.21281829,109190.0,109180.0,0.001]
[1756750173762,0.18318373,109180.0,109170.0,0.00047141]
[1756750173941,0.52158928,109180.0,109170.0,0.00047141]
[1756750174129,0.18515373,109180.0,109170.0,0.00047141]
[1756750174353,0.52355928,109180.0,109170.0,0.00047141]
[1756750175831,0.52355928,109180.0,109170.0,0.00147141]
[1756750178018,0.52648928,109180.0,109170.0,0.00147141]
[1756750178654,0.86648928,109180.0,109170.0,0.00147141]
[1756750179715,1.05032126,109180.0,109170.0,0.00147141]
[1756750179929,1.07758106,109180.0,109170.0,0.00147141]
[1756750180138,1.07758106,109180.0,109170.0,0.00047141]
[1756750180345,0.98566507,109180.0,109170.0,0.00047141]
[1756750180555,0.98666507,109180.0,109170.0,0.00047141]
[1756750181068,0.98566507,109180.0,109170.0,0.00047141]
[1756750181687,1.02699275,109180.0,109170.0,0.00047141]
[1756750181979,1.4770945,109180.0,109170.0,0.00047141]
[1756750182202,6.40707291,109180.0,109170.0,0.00047141]
[1756750182415,6.06866736,109180.0,109170.0,0.00047141]
[1756750182594,6.40707291,109180.0,109170.0,0.00047141]
[1756750182813,6.43561591,109180.0,109170.0,0.00047141]
[1756750183031,6.5275319,109180.0,109170.0,0.00047141]
[1756750183237,6.55971834,109180.0,109170.0,0.00047141]
[1756750183448,6.55113529,109180.0,109170.0,0.00047141]
[1756750184174,6.71627468,109180.0,109170.0,0.00047141]
[1756750184404,6.70769529,109180.0,109170.0,0.00047141]
[1756750184620,6.55113529,109180.0,109170.0,0.00047141]
[1756750184834,6.70769529,109180.0,109170.0,0.00047141]
[1756750186759,6.701258,109180.0,109170.0,0.00047141]
[1756750186976,6.45278201,109180.0,109170.0,0.00047141]
[1756750187194,6.24904206,109180.0,109170.0,0.00047141]
[1756750187416,6.24904206,109180.0,109150.0,0.00317]
[1756750187418,0.18323408,109150.0,109140.0,0.0004]
[1756750187635,1.01999963,109150.0,109140.0,0.00048621]
[1756750187887,0.80917033,109150.0,109140.0,0.00048621]
[1756750188100,0.92863532,109150.0,109140.0,0.00048621]
[1756750188313,1.26704087,109150.0,109140.0,0.00048621]
[1756750188529,1.17512488,109150.0,109140.0,0.00048621]
[1756750188754,0.83406933,109150.0,109140.0,0.00148621]
[1756750188968,1.17247488,109150.0,109140.0,0.00259621]
[1756750189176,1.14174462,109150.0,109140.0,0.00259621]
[1756750189384,1.14174462,109150.0,109140.0,0.00359621]
[1756750189797,0.98310462,109150.0,109140.0,0.00259621]
[1756750190013,1.14178462,109150.0,109140.0,0.00259621]
[1756750190234,1.14174462,109150.0,109140.0,0.00259621]
[1756750191782,1.18239054,109150.0,109140.0,0.00259621]
[1756750191991,0.68534499,109150.0,109140.0,0.00576621]
[1756750192134,1.02375054,109150.0,109140.0,0.00576621]
[1756750192336,1.18235054,109150.0,109140.0,0.00576621]
[1756750192737,1.18235054,109150.0,109140.0,0.00259621]
[1756750193083,1.18235054,109150.0,109140.0,0.00048621]
[1756750193283,1.18235054,109150.0,109140.0,0.00259621]
[1756750194885,1.18235054,109150.0,109140.0,0.00048621]
[1756750199323,1.18235054,109150.0,109140.0,0.00576621]
[1756750199324,0.68334499,109150.0,109140.0,0.00576621]
[1756750199521,0.43191599,109150.0,109140.0,0.18901708]
[1756750199751,0.34183408,109150.0,109140.0,0.18901708]
[1756750200262,0.59207791,109160.0,109140.0,0.18901708]
[1756750200476,0.59367236,109160.0,109150.0,0.18640408]
[1756750200683,0.75219236,109160.0,109150.0,0.18640408]
[1756750200888,0.75219236,109160.0,109150.0,0.18851408]
[1756750201309,0.75219236,109160.0,109150.0,0.00528]
[1756750202205,0.75319236,109160.0,109150.0,0.18851408]
[1756750202647,0.75219236,109160.0,109150.0,0.18851408]
[1756750203738,0.75219236,109160.0,109150.0,0.00528]
[1756750203970,0.18323408,109150.0,109140.0,0.18690235]
[1756750204179,0.34163408,109150.0,109140.0,0.18901235]
[1756750204591,0.34163408,109150.0,109140.0,0.00576621]
[1756750204800,0.68003963,109150.0,109140.0,0.00576621]
[1756750205015,0.68218963,109150.0,109140.0,0.00576621]
[1756750205224,0.34163408,109150.0,109140.0,0.19001708]
[1756750205653,0.34163408,109150.0,109140.0,0.19101708]
[1756750206804,0.34378408,109150.0,109140.0,0.19101708]
[1756750207034,0.34163408,109150.0,109140.0,0.19101708]
[1756750208507,0.34378408,109150.0,109140.0,0.00776621]
[1756750208722,0.68218963,109150.0,109140.0,0.00248621]
[1756750208936,0.77718562,109150.0,109140.0,0.00248621]
[1756750209916,0.43878007,109150.0,109140.0,0.00248621]
[1756750210138,0.77410562,109150.0,109140.0,0.00458621]
[1756750210353,0.43570007,109150.0,109140.0,0.00665621]
[1756750210560,0.77410562,109150.0,109140.0,0.00665621]
[1756750210789,0.77410562,109150.0,109140.0,0.00358621]
[1756750210993,0.77410562,109150.0,109140.0,0.00258621]
[1756750211201,0.77410562,109150.0,109140.0,0.00565621]
[1756750212520,0.77410562,109150.0,109140.0,0.18890708]
[1756750212943,0.77410562,109150.0,109140.0,0.00565621]
[1756750213314,0.77410562,109150.0,109140.0,0.18890708]
[1756750213553,0.77410562,109150.0,109140.0,0.00565621]
[1756750214161,0.77410562,109150.0,109140.0,0.18890708]
[1756750214336,0.77195562,109150.0,109140.0,0.18890708]
[1756750214550,0.77410562,109150.0,109140.0,0.18890708]
[1756750214933,0.77429936,109160.0,109150.0,0.18323408]
[1756750214934,0.59367236,109160.0,109150.0,0.18323408]
[1756750215149,0.63064182,109160.0,109150.0,0.18840408]
[1756750215354,0.78864182,109160.0,109150.0,0.18840408]
[1756750216803,0.17509937,109160.0,109150.0,0.18840408]
[1756750217017,0.15792,109160.0,109150.0,0.18840408]
[1756750217272,0.34113729,109160.0,109150.0,0.18840408]
[1756750218508,0.34113729,109160.0,109150.0,0.18940408]
[1756750218915,0.34113729,109160.0,109150.0,0.19040408]
[1756750219785,0.68875832,109180.0,109160.0,0.18321729]
[1756750220017,5.68104051,109170.0,109160.0,0.18628729]
[1756750220236,0.68104051,109170.0,109160.0,0.18838729]
[1756750220911,0.49776,109170.0,109160.0,0.18838729]
[1756750221144,0.68096051,109170.0,109160.0,0.18838729]
[1756750223302,0.68096051,109170.0,109160.0,0.18938729]
[1756750223741,0.15776,109170.0,109160.0,0.18938729]
[1756750223965,0.15776,109170.0,109160.0,0.54973166]
[1756750224187,0.68082373,109180.0,109160.0,0.36896611]
[1756750224612,1.01922928,109180.0,109160.0,0.36589611]
[1756750224870,1.01922928,109180.0,109170.0,0.00229]
[1756750225115,1.02137928,109180.0,109170.0,0.0021]
[1756750225996,0.68297373,109180.0,109170.0,0.0021]
[1756750226887,0.19232529,109190.0,109170.0,0.18837051]
[1756750227105,0.19232529,109190.0,109170.0,0.18530051]
[1756750227106,0.18318373,109180.0,109170.0,0.18530051]
[1756750227351,0.18318373,109180.0,109170.0,0.34543051]
[1756750227578,0.18318373,109180.0,109170.0,0.34414051]
[1756750227799,0.18318373,109180.0,109170.0,0.34621051]
[1756750228011,0.18318373,109180.0,109170.0,0.37474751]
[1756750228671,0.35016529,109190.0,109170.0,0.34721051]
[1756750229359,0.18318373,109180.0,109170.0,0.34721051]
[1756750229578,0.18318373,109180.0,109170.0,0.34621051]
[1756750229787,0.18318373,109180.0,109170.0,0.34721051]
[1756750229999,0.18318373,109180.0,109170.0,0.18937051]
[1756750230218,0.18318373,109180.0,109170.0,0.34609051]
[1756750230438,0.35016529,109190.0,109170.0,0.34609051]
[1756750230667,0.18318373,109180.0,109170.0,0.18530051]
[1756750230879,0.18318373,109180.0,109170.0,0.34838051]
[1756750231094,0.18318373,109180.0,109170.0,0.34709051]
[1756750231552,0.18318373,109180.0,109170.0,0.34609051]
[1756750232088,0.18318373,109180.0,109170.0,0.34709051]
[1756750232300,0.18318373,109180.0,109170.0,0.34705051]
[1756750232565,0.18533373,109180.0,109170.0,0.00617]
[1756750232827,0.18533373,109180.0,109170.0,0.16377]
[1756750232828,0.18318373,109180.0,109170.0,0.16377]
[1756750233515,0.18318373,109180.0,109170.0,0.16477]
[1756750233700,0.18318373,109180.0,109170.0,0.16706]
[1756750234204,0.18318373,109180.0,109170.0,0.35026051]
[1756750234423,0.18318373,109180.0,109170.0,0.34797051]
[1756750234860,0.52316695,109190.0,109170.0,0.68637606]
[1756750235086,0.68068695,109190.0,109180.0,0.00547979]
[1756750235300,0.68264695,109190.0,109180.0,0.00547979]
[1756750235512,0.68264695,109190.0,109180.0,0.00751979]
[1756750235727,0.68068695,109190.0,109180.0,0.00751979]
[1756750236174,0.68264695,109190.0,109180.0,0.00751979]
[1756750236397,0.68264695,109190.0,109180.0,0.007606]
[1756750237543,0.68264695,109190.0,109180.0,0.00531621]
[1756750237835,0.68264695,109190.0,109180.0,0.00212621]
[1756750238338,0.68264695,109190.0,109180.0,0.00312621]
[1756750239339,0.68264695,109190.0,109180.0,0.00631621]
[1756750239863,0.68264695,109190.0,109180.0,0.008606]
[1756750240313,0.68068695,109190.0,109180.0,0.008606]
[1756750240516,0.68264695,109190.0,109180.0,0.008606]
[1756750240940,0.68264695,109190.0,109180.0,0.009606]
[1756750241989,0.34264695,109190.0,109180.0,0.009606]
[1756750244421,0.34264695,109190.0,109180.0,0.004376]
[1756750244650,0.34264695,109190.0,109180.0,0.006416]
[1756750245991,0.34557695,109190.0,109180.0,0.00208621]
[1756750246198,0.71471276,109190.0,109180.0,0.00208621]
[1756750246723,1.22360281,109190.0,109180.0,0.00208621]
[1756750246936,1.16639086,109190.0,109180.0,0.00108621]
[1756750247134,1.16639047,109190.0,109180.0,0.00108621]
[1756750247962,1.20562556,109190.0,109180.0,8.621e-05]
[1756750248171,1.22263898,109190.0,109180.0,8.621e-05]
[1756750248375,1.22215898,109190.0,109180.0,8.621e-05]
[1756750249000,0.86167971,109190.0,109180.0,8.621e-05]
[1756750249220,1.03661158,109190.0,109180.0,8.621e-05]
[1756750249425,1.16292132,109190.0,109180.0,8.621e-05]
[1756750249649,1.16392132,109190.0,109180.0,8.621e-05]
[1756750249856,1.16192132,109190.0,109180.0,8.621e-05]
[1756750250081,1.15534607,109190.0,109180.0,8.621e-05]
[1756750250902,1.16078428,109190.0,109180.0,8.621e-05]
[1756750251155,1.16936856,109190.0,109180.0,8.621e-05]
[1756750251673,1.14123253,109190.0,109180.0,8.621e-05]
[1756750252119,1.14223253,109190.0,109180.0,8.621e-05]
[1756750252338,1.14023253,109190.0,109180.0,8.621e-05]
[1756750252544,1.14019253,109190.0,109180.0,8.621e-05]
[1756750252756,1.14219253,109190.0,109180.0,8.621e-05]
[1756750252989,0.98519253,109190.0,109180.0,8.621e-05]
[1756750253226,1.13084204,109190.0,109180.0,0.00327621]
[1756750253454,0.63543649,109190.0,109180.0,8.621e-05]
[1756750253676,1.13084204,109190.0,109180.0,0.00531621]
[1756750253882,1.12617004,109190.0,109180.0,0.00531621]
[1756750254107,1.13919745,109190.0,109180.0,8.621e-05]
[1756750254844,1.16992771,109190.0,109180.0,8.621e-05]
[1756750255058,1.1549003,109190.0,109180.0,8.621e-05]
[1756750255459,1.16992753,109190.0,109180.0,8.621e-05]
[1756750255694,1.17092753,109190.0,109180.0,8.621e-05]
[1756750255891,1.17292753,109190.0,109180.0,8.621e-05]
[1756750256313,1.1579003,109190.0,109180.0,8.621e-05]
[1756750256927,1.1569003,109190.0,109180.0,8.621e-05]
[1756750257131,1.1559003,109190.0,109180.0,8.621e-05]
[1756750257550,1.1579003,109190.0,109180.0,8.621e-05]
[1756750257779,1.1569003,109190.0,109180.0,8.621e-05]
[1756750258150,1.1579003,109190.0,109180.0,8.621e-05]
[1756750258517,1.1569003,109190.0,109180.0,8.621e-05]
[1756750258863,1.1579003,109190.0,109180.0,8.621e-05]
[1756750259023,1.49630585,109190.0,109180.0,8.621e-05]
[1756750259231,1.50933074,109190.0,109180.0,8.621e-05]
[1756750259434,1.17092519,109190.0,109180.0,8.621e-05]
[1756750259757,1.17292519,109190.0,109180.0,8.621e-05]
[1756750259924,1.51133074,109190.0,109180.0,8.621e-05]
[1756750260110,1.51033074,109190.0,109180.0,8.621e-05]
[1756750260710,1.51133569,109190.0,109180.0,8.621e-05]
[1756750261060,1.51033569,109190.0,109180.0,8.621e-05]
[1756750261270,1.50175017,109190.0,109180.0,8.621e-05]
[1756750261471,1.50275017,109190.0,109180.0,8.621e-05]
[1756750262210,1.58822702,109190.0,109180.0,8.621e-05]
[1756750262614,1.61576702,109190.0,109180.0,8.621e-05]
[1756750262821,1.52385103,109190.0,109180.0,8.621e-05]
[1756750264741,1.18544548,109190.0,109180.0,8.621e-05]
[1756750265985,1.52385103,109190.0,109180.0,8.621e-05]
[1756750266624,1.52386713,109190.0,109180.0,8.621e-05]
[1756750268848,1.18546158,109190.0,109180.0,8.621e-05]
[1756750270118,1.16829054,109190.0,109180.0,8.621e-05]
[1756750270342,1.18546207,109190.0,109180.0,8.621e-05]
[1756750270544,1.52386762,109190.0,109180.0,8.621e-05]
[1756750271057,1.5238679,109190.0,109180.0,8.621e-05]
[1756750271517,1.52386967,109190.0,109180.0,8.621e-05]
[1756750273299,1.53031191,109190.0,109180.0,8.621e-05]
[1756750273728,1.53031203,109190.0,109180.0,8.621e-05]
[1756750274155,0.86209077,109190.0,109180.0,8.621e-05]
[1756750274361,1.53890187,109190.0,109180.0,8.621e-05]
[1756750275207,1.56362415,109190.0,109180.0,8.621e-05]
[1756750275864,6.56362415,109190.0,109180.0,8.621e-05]
[1756750277310,6.67761702,109190.0,109180.0,1e-08]
[1756750277518,6.61864097,109190.0,109180.0,1e-08]
[1756750277953,6.59391869,109190.0,109180.0,1e-08]
[1756750278167,6.64334148,109190.0,109180.0,1e-08]
[1756750280696,6.64335513,109190.0,109180.0,1e-08]
[1756750281544,6.98176068,109190.0,109180.0,1e-08]
[1756750281754,7.14073673,109190.0,109180.0,1e-08]
[1756750281977,7.11225276,109190.0,109180.0,1e-08]
[1756750282617,7.11704254,109190.0,109180.0,1e-08]
[1756750282824,7.18250348,109190.0,109180.0,1e-08]
[1756750283045,7.02550348,109190.0,109180.0,1e-08]
[1756750283306,6.68709793,109190.0,109180.0,1e-08]
[1756750283720,6.84405793,109190.0,109180.0,1e-08]
[1756750284142,6.77863699,109190.0,109180.0,1e-08]
[1756750284348,6.82808086,109190.0,109180.0,1e-08]
[1756750285597,6.67108086,109190.0,109180.0,1e-08]
[1756750285805,6.82812086,109190.0,109180.0,1e-08]
[1756750290974,6.82808622,109190.0,109180.0,1e-08]
[1756750291178,6.828056,109190.0,109180.0,1e-08]
[1756750292905,6.82326622,109190.0,109180.0,1e-08]
[1756750295374,7.16167177,109190.0,109180.0,1e-08]
[1756750295965,0.67321729,109160.0,109150.0,0.07354631]
[1756750296168,6.28015665,109160.0,109150.0,0.07359346]
[1756750296367,6.12331665,109160.0,109150.0,0.07557346]
[1756750296564,6.16604405,109160.0,109150.0,0.07557346]
[1756750296833,6.12331665,109160.0,109150.0,0.07557346]
[1756750297334,6.1232944,109160.0,109150.0,0.00402715]
[1756750297676,6.1508424,109160.0,109150.0,0.00402715]
[1756750298087,6.1508424,109160.0,109150.0,0.00720715]
[1756750298336,6.1508424,109160.0,109150.0,0.01020715]
[1756750298511,6.33841266,109160.0,109150.0,0.01020715]
[1756750299080,6.43032865,109160.0,109150.0,0.01020715]
[1756750299285,6.7687342,109160.0,109150.0,0.01020715]
[1756750299896,6.80945477,109160.0,109150.0,0.01020715]
[1756750300022,6.8486838,109160.0,109150.0,0.01020715]
[1756750300463,6.1718727,109160.0,109150.0,0.01020715]
[1756750300704,6.82660692,109160.0,109150.0,0.01020715]
[1756750300925,6.39628538,109160.0,109150.0,0.00820715]
[1756750301146,6.37913323,109160.0,109150.0,0.00520715]
[1756750301370,6.22229323,109160.0,109150.0,0.00520715]
[1756750304298,6.23945962,109160.0,109150.0,0.00520715]
[1756750304502,6.66978116,109160.0,109150.0,0.00520715]
[1756750305304,6.65261477,109160.0,109150.0,0.00520715]
[1756750305497,6.22229323,109160.0,109150.0,0.00520715]
[1756750306263,6.23946442,109160.0,109150.0,0.00520715]
[1756750306462,6.24590592,109160.0,109150.0,0.00520715]
[1756750306712,6.23946442,109160.0,109150.0,0.00520715]
[1756750306905,6.33138041,109160.0,109150.0,0.00520715]
[1756750307247,6.33782507,109160.0,109150.0,0.00520715]
[1756750307452,6.67623062,109160.0,109150.0,0.00520715]
[1756750308813,6.70951788,109160.0,109150.0,0.00520715]
[1756750310383,6.70092359,109160.0,109150.0,0.00520715]
[1756750310583,6.70952171,109160.0,109150.0,0.00520715]
[1756750312048,6.25558432,109160.0,109150.0,0.00520715]
[1756750312248,6.27923966,109160.0,109150.0,0.00520715]
[1756750314099,6.95828135,109160.0,109150.0,0.00520715]
[1756750314529,6.96031135,109160.0,109150.0,0.00520715]
[1756750314706,6.95828135,109160.0,109150.0,0.00520715]
[1756750314921,7.05019734,109160.0,109150.0,0.00520715]
[1756750315714,6.95828135,109160.0,109150.0,0.00520715]
[1756750316129,6.27999496,109160.0,109150.0,0.00520715]